[Event "Irish Championship 2026"]
[Site "Talbot Hotel Stillorgan, Co.Dublin, IE"]
[Date "2026.08.02"]
[Round "2"]
[White "Moull, Arthur"]
[Black "Campbell, Andrew"]
[Result "1-0"]
[Board "84"]
[TimeControl "40/5400+30:1800+30"]
[WhiteFideId "2517426"]
[BlackFideId "2518392"]
[WhiteElo "1876"]
[BlackElo "1951"]
[WhiteClock "0:11:25"]
[BlackClock "0:02:33"]
[Variant "Standard"]
[EndDate "2026.08.02"]
[EndTime "17:32:46"]

1. d4 {[%clk 1:30:57]}  Nf6 {[%clk 1:30:22]} 2. c4 {[%clk 1:31:20]}  g6 {[%clk 1:30:49]} 3. Nc3 {[%clk 1:31:46]}  Bg7 {[%clk 1:31:16]}
4. e4 {[%clk 1:32:11]}  d6 {[%clk 1:31:42]} 5. Nf3 {[%clk 1:32:36]}  O-O {[%clk 1:32:06]} 6. Be2 {[%clk 1:32:56]}  Nbd7 {[%clk 1:32:15]}
7. O-O {[%clk 1:33:18]}  e5 {[%clk 1:32:43]} 8. Be3 {[%clk 1:33:28]}  Qe7 {[%clk 1:33:06]} 9. dxe5 {[%clk 1:29:13]}  dxe5 {[%clk 1:28:45]}
10. Qc2 {[%clk 1:28:46]}  c6 {[%clk 1:28:42]} 11. Rfd1 {[%clk 1:23:03]}  h6 {[%clk 1:26:31]} 12. Ne1 {[%clk 1:18:53]}  Nc5 {[%clk 1:21:06]}
13. f3 {[%clk 1:09:00]}  Ne6 {[%clk 1:16:55]} 14. Bf1 {[%clk 1:05:47]}  Kh7 {[%clk 1:10:21]} 15. a3 {[%clk 1:00:43]}  Nd4 {[%clk 0:59:35]}
16. Qf2 {[%clk 0:54:23]}  Be6 {[%clk 0:53:52]} 17. b4 {[%clk 0:48:32]}  a5 {[%clk 0:48:30]} 18. b5 {[%clk 0:45:55]}  Rfd8 {[%clk 0:45:55]}
19. Rdb1 {[%clk 0:40:06]}  a4 {[%clk 0:41:41]} 20. Rb4 {[%clk 0:35:34]}  Nd7 {[%clk 0:33:23]} 21. bxc6 {[%clk 0:32:34]}  bxc6 {[%clk 0:33:08]}
22. Qb2 {[%clk 0:20:37]}  Nc5 {[%clk 0:24:51]} 23. Rd1 {[%clk 0:20:31]}  Rd7 {[%clk 0:19:21]} 24. Nd3 {[%clk 0:18:54]}  Nxd3 {[%clk 0:15:18]}
25. Bxd3 {[%clk 0:19:22]}  Qd8 {[%clk 0:15:34]} 26. Qb1 {[%clk 0:17:26]}  Bf8 {[%clk 0:14:27]} 27. Rxa4 {[%clk 0:16:28]}  Rxa4 {[%clk 0:14:44]}
28. Nxa4 {[%clk 0:16:57]}  Bxc4 {[%clk 0:12:23]} 29. Kh1 {[%clk 0:11:45]}  Bb3 {[%clk 0:10:22]} 30. Bxd4 {[%clk 0:10:40]}  Bxa4 {[%clk 0:07:07]}
31. Bb6 {[%clk 0:10:52]}  Qb8 {[%clk 0:06:05]} 32. Rd2 {[%clk 0:10:54]}  Bc5 {[%clk 0:05:15]} 33. Ba5 {[%clk 0:09:51]}  Qd6 {[%clk 0:03:33]}
34. Bc2 {[%clk 0:08:43]}  Bxc2 {[%clk 0:01:11]} 35. Qxc2 {[%clk 0:09:12]}  Qe7 {[%clk 0:01:15]} 36. Rxd7 {[%clk 0:09:30]}  Qxd7 {[%clk 0:01:44]}
37. Qxc5 {[%clk 0:09:52]}  Qd1+ {[%clk 0:01:54]} 38. Qg1 {[%clk 0:10:20]}  Qa4 {[%clk 0:01:20]} 39. Bb4 {[%clk 0:10:43]}  Qb5 {[%clk 0:01:43]}
40. Qc1 {[%clk 0:10:44]}  h5 {[%clk 0:02:01]} 41. h3 {[%clk 0:10:45]}  f6 {[%clk 0:01:51]} 42. Qc5 {[%clk 0:10:43]}  Qf1+ {[%clk 0:02:02]}
43. Kh2 {[%clk 0:11:02]}  h4 {[%clk 0:02:17]} 44. Qe7+ {[%clk 0:11:15]}  Kh6 {[%clk 0:02:33]} 45. Bd2+ {[%clk 0:11:25]} 1-0

[Event "Irish Championship 2026"]
[Site "Talbot Hotel Stillorgan, Co.Dublin, IE"]
[Date "2026.08.02"]
[Round "2"]
[White "Andhurthi, Sreeyan"]
[Black "Greenan, Darragh"]
[Result "1/2-1/2"]
[Board "85"]
[TimeControl "40/5400+30:1800+30"]
[WhiteFideId "2523531"]
[BlackFideId "2525607"]
[WhiteElo "1950"]
[BlackElo "1786"]
[WhiteClock "0:50:17"]
[BlackClock "0:54:34"]
[Variant "Standard"]
[EndDate "2026.08.02"]
[EndTime "16:03:42"]

1. e4 {[%clk 1:30:59]}  e6 {[%clk 1:30:57]} 2. d4 {[%clk 1:31:23]}  d5 {[%clk 1:31:23]} 3. Bd3 {[%clk 1:31:47]}  dxe4 {[%clk 1:31:48]}
4. Bxe4 {[%clk 1:32:10]}  Nf6 {[%clk 1:32:13]} 5. Bf3 {[%clk 1:32:33]}  c5 {[%clk 1:32:11]} 6. Ne2 {[%clk 1:32:53]}  Be7 {[%clk 1:32:36]}
7. O-O {[%clk 1:32:55]}  O-O {[%clk 1:32:34]} 8. Nbc3 {[%clk 1:32:40]}  cxd4 {[%clk 1:27:45]} 9. Qxd4 {[%clk 1:31:17]}  Nc6 {[%clk 1:21:31]}
10. Qxd8 {[%clk 1:25:25]}  Rxd8 {[%clk 1:19:31]} 11. Bf4 {[%clk 1:23:40]}  Bd7 {[%clk 1:15:05]} 12. Rad1 {[%clk 1:18:34]}  Rac8 {[%clk 1:11:23]}
13. a3 {[%clk 1:11:48]}  h6 {[%clk 1:05:32]} 14. Bd6 {[%clk 1:08:52]}  Bxd6 {[%clk 1:03:38]} 15. Rxd6 {[%clk 1:07:09]}  Na5 {[%clk 0:59:45]}
16. b3 {[%clk 0:52:05]}  Bc6 {[%clk 0:55:39]} 17. Rxd8+ {[%clk 0:50:51]}  Rxd8 {[%clk 0:55:04]} 18. Bxc6 {[%clk 0:50:31]}  Nxc6 {[%clk 0:54:34]}
19. Rd1 {[%clk 0:50:17]}  Rd4 {[%clk 0:53:08]} 20. Rd3 {[%clk 0:50:17]}  Rxd3 {[%clk 0:53:38]} 21. Nd1 {[%clk 0:50:35]} 1/2-1/2

[Event "Irish Championship 2026"]
[Site "Talbot Hotel Stillorgan, Co.Dublin, IE"]
[Date "2026.08.02"]
[Round "2"]
[White "Rai, Oleksii"]
[Black "Healy, John"]
[Result "1-0"]
[Board "86"]
[TimeControl "40/5400+30:1800+30"]
[WhiteFideId "2531526"]
[BlackFideId "2500965"]
[WhiteElo "1840"]
[BlackElo "1928"]
[WhiteClock "0:33:18"]
[BlackClock "0:52:17"]
[Variant "Standard"]
[EndDate "2026.08.02"]
[EndTime "16:00:25"]

1. e4 {[%clk 1:30:58]}  c5 {[%clk 1:25:53]} 2. Nf3 {[%clk 1:31:21]}  a6 {[%clk 1:26:03]} 3. c4 {[%clk 1:31:37]}  Nc6 {[%clk 1:26:28]}
4. d4 {[%clk 1:31:56]}  cxd4 {[%clk 1:26:54]} 5. Nxd4 {[%clk 1:32:19]}  e5 {[%clk 1:26:53]} 6. Nf5 {[%clk 1:32:34]}  d6 {[%clk 1:27:15]}
7. Ne3 {[%clk 1:32:31]}  g6 {[%clk 1:27:25]} 8. Nc3 {[%clk 1:31:34]}  Bh6 {[%clk 1:25:30]} 9. Bd3 {[%clk 1:26:24]}  Nf6 {[%clk 1:22:04]}
10. O-O {[%clk 1:20:31]}  O-O {[%clk 1:21:29]} 11. Ned5 {[%clk 1:20:07]}  Bxc1 {[%clk 1:21:47]} 12. Rxc1 {[%clk 1:17:50]}  Nh5 {[%clk 1:14:03]}
13. Be2 {[%clk 1:16:04]}  Qg5 {[%clk 1:10:10]} 14. Bxh5 {[%clk 1:13:29]}  gxh5 {[%clk 1:10:33]} 15. Qf3 {[%clk 1:07:11]}  f5 {[%clk 1:02:27]}
16. Qg3 {[%clk 1:05:59]}  h6 {[%clk 1:02:41]} 17. f4 {[%clk 0:56:57]}  exf4 {[%clk 0:58:56]} 18. Qxf4 {[%clk 0:53:39]}  Ne5 {[%clk 0:57:58]}
19. b3 {[%clk 0:40:12]}  Rf7 {[%clk 0:57:31]} 20. Qxg5+ {[%clk 0:38:33]}  hxg5 {[%clk 0:57:50]} 21. Nb6 {[%clk 0:38:25]}  Rb8 {[%clk 0:58:08]}
22. Nxc8 {[%clk 0:38:26]}  Rxc8 {[%clk 0:58:31]} 23. exf5 {[%clk 0:35:12]}  b5 {[%clk 0:55:56]} 24. Ne4 {[%clk 0:34:52]}  Rd8 {[%clk 0:52:17]}
25. Nxg5 {[%clk 0:33:18]} 1-0

[Event "Irish Championship 2026"]
[Site "Talbot Hotel Stillorgan, Co.Dublin, IE"]
[Date "2026.08.03"]
[Round "3"]
[White "Venkatesan, Kavin"]
[Black "Barnes, Oliver"]
[Result "1/2-1/2"]
[Board "61"]
[TimeControl "40/5400+30:1800+30"]
[WhiteFideId "2512602"]
[BlackFideId "2517604"]
[WhiteElo "2297"]
[BlackElo "2107"]
[WhiteTitle "FM"]
[WhiteClock "0:02:01"]
[BlackClock "0:01:31"]
[Variant "Standard"]
[EndDate "2026.08.03"]
[EndTime "19:06:32"]

1. c4 {[%clk 1:28:22]}  e6 {[%clk 1:27:12]} 2. Nc3 {[%clk 1:25:45]}  Nf6 {[%clk 1:26:24]} 3. e4 {[%clk 1:26:08]}  c5 {[%clk 1:26:51]}
4. e5 {[%clk 1:26:30]}  Ng8 {[%clk 1:27:17]} 5. d4 {[%clk 1:26:55]}  cxd4 {[%clk 1:26:54]} 6. Qxd4 {[%clk 1:27:17]}  Nc6 {[%clk 1:24:50]}
7. Qf4 {[%clk 1:27:41]}  d6 {[%clk 1:16:15]} 8. Nf3 {[%clk 1:12:12]}  Nge7 {[%clk 1:03:26]} 9. exd6 {[%clk 1:12:15]}  Ng6 {[%clk 1:03:45]}
10. Qe4 {[%clk 1:12:36]}  Bxd6 {[%clk 0:56:56]} 11. Bg5 {[%clk 1:12:53]}  f6 {[%clk 0:54:30]} 12. Be3 {[%clk 1:08:47]}  Qe7 {[%clk 0:50:29]}
13. a3 {[%clk 0:57:03]}  O-O {[%clk 0:46:24]} 14. Rd1 {[%clk 0:50:18]}  Rd8 {[%clk 0:35:53]} 15. Qc2 {[%clk 0:42:52]}  Bd7 {[%clk 0:27:17]}
16. Bd3 {[%clk 0:40:30]}  Be8 {[%clk 0:26:34]} 17. O-O {[%clk 0:36:07]}  Rac8 {[%clk 0:25:30]} 18. b4 {[%clk 0:29:44]}  b6 {[%clk 0:24:41]}
19. Ne4 {[%clk 0:26:16]}  Bf4 {[%clk 0:23:14]} 20. Rfe1 {[%clk 0:23:51]}  Bxe3 {[%clk 0:22:19]} 21. Rxe3 {[%clk 0:24:05]}  Nce5 {[%clk 0:22:02]}
22. Nxe5 {[%clk 0:18:22]}  Nxe5 {[%clk 0:22:24]} 23. f4 {[%clk 0:16:52]}  Nxc4 {[%clk 0:19:44]} 24. Bxc4 {[%clk 0:15:10]}  Rxc4 {[%clk 0:16:48]}
25. Qxc4 {[%clk 0:15:22]}  Rxd1+ {[%clk 0:17:16]} 26. Kf2 {[%clk 0:15:51]}  Bf7 {[%clk 0:16:45]} 27. Qc8+ {[%clk 0:11:02]}  Rd8 {[%clk 0:16:31]}
28. Qc3 {[%clk 0:11:23]}  Qd7 {[%clk 0:14:16]} 29. Kg3 {[%clk 0:09:11]}  Qd4 {[%clk 0:13:13]} 30. Qxd4 {[%clk 0:09:01]}  Rxd4 {[%clk 0:13:42]}
31. Nc3 {[%clk 0:09:27]}  Kf8 {[%clk 0:13:02]} 32. Nb5 {[%clk 0:08:12]}  Rd7 {[%clk 0:13:31]} 33. Kf3 {[%clk 0:07:23]}  Ke7 {[%clk 0:12:57]}
34. Rc3 {[%clk 0:06:08]}  Be8 {[%clk 0:10:02]} 35. Ke3 {[%clk 0:06:14]}  Rb7 {[%clk 0:09:46]} 36. Nd4 {[%clk 0:06:06]}  a6 {[%clk 0:08:45]}
37. g3 {[%clk 0:04:31]}  h6 {[%clk 0:08:29]} 38. Ke4 {[%clk 0:02:49]}  Bd7 {[%clk 0:08:07]} 39. Rc1 {[%clk 0:00:44]}  g6 {[%clk 0:07:46]}
40. Ke3 {[%clk 0:00:46]}  h5 {[%clk 0:04:50]} 41. Rc3 {[%clk 0:19:31]}  Kd6 {[%clk 0:26:55]} 42. Rd3 {[%clk 0:18:13]}  Ke7 {[%clk 0:22:17]}
43. Rc3 {[%clk 0:18:14]}  Rb8 {[%clk 0:18:27]} 44. Rc7 {[%clk 0:15:15]}  Rc8 {[%clk 0:17:05]} 45. Rb7 {[%clk 0:15:13]}  Rc3+ {[%clk 0:14:34]}
46. Kd2 {[%clk 0:15:13]}  Rxa3 {[%clk 0:14:43]} 47. Rxb6 {[%clk 0:15:29]}  g5 {[%clk 0:12:40]} 48. fxg5 {[%clk 0:13:15]}  fxg5 {[%clk 0:13:08]}
49. Nc2 {[%clk 0:12:25]}  Rf3 {[%clk 0:04:51]} 50. Ke2 {[%clk 0:11:19]}  Rc3 {[%clk 0:04:42]} 51. Kd2 {[%clk 0:09:26]}  Rf3 {[%clk 0:04:34]}
52. Ke2 {[%clk 0:09:49]}  Rf5 {[%clk 0:04:40]} 53. Nd4 {[%clk 0:08:20]}  Rd5 {[%clk 0:03:49]} 54. Ke3 {[%clk 0:07:54]}  a5 {[%clk 0:02:38]}
55. bxa5 {[%clk 0:07:08]}  Rxa5 {[%clk 0:03:07]} 56. Rxe6+ {[%clk 0:05:05]}  Bxe6 {[%clk 0:03:09]} 57. Nc6+ {[%clk 0:05:34]}  Kf6 {[%clk 0:02:05]}
58. Nxa5 {[%clk 0:05:55]}  Kf5 {[%clk 0:01:49]} 59. Nc6 {[%clk 0:05:34]}  Kg4 {[%clk 0:01:37]} 60. Kf2 {[%clk 0:04:56]}  Bd5 {[%clk 0:00:45]}
61. Ne5+ {[%clk 0:03:44]}  Kf5 {[%clk 0:00:53]} 62. Nd3 {[%clk 0:02:52]}  Ke4 {[%clk 0:01:07]} 63. Ne1 {[%clk 0:02:16]}  Kf5 {[%clk 0:00:57]}
64. Nc2 {[%clk 0:02:27]}  Be4 {[%clk 0:01:10]} 65. Ne3+ {[%clk 0:02:34]}  Ke5 {[%clk 0:01:31]} 66. Nc4+ {[%clk 0:02:01]} 1/2-1/2

[Event "Irish Championship 2026"]
[Site "Talbot Hotel Stillorgan, Co.Dublin, IE"]
[Date "2026.08.03"]
[Round "3"]
[White "Tureshbayev, Anuar"]
[Black "Hushpit, Lukian"]
[Result "1-0"]
[Board "63"]
[TimeControl "40/5400+30:1800+30"]
[WhiteFideId "651081709"]
[BlackFideId "14189208"]
[WhiteElo "2250"]
[BlackElo "2088"]
[WhiteTitle "FM"]
[WhiteClock "0:23:59"]
[BlackClock "0:37:50"]
[Variant "Standard"]
[EndDate "2026.08.03"]
[EndTime "16:26:58"]

1. Nf3 {[%clk 1:30:58]}  d5 {[%clk 1:25:28]} 2. e3 {[%clk 1:31:25]}  Nf6 {[%clk 1:25:52]} 3. b3 {[%clk 1:30:28]}  e6 {[%clk 1:26:14]}
4. Bb2 {[%clk 1:30:52]}  Be7 {[%clk 1:26:39]} 5. c4 {[%clk 1:30:11]}  O-O {[%clk 1:26:49]} 6. Nc3 {[%clk 1:28:36]}  b6 {[%clk 1:21:09]}
7. d4 {[%clk 1:25:00]}  Bb7 {[%clk 1:25:34]} 8. Bd3 {[%clk 1:24:26]}  c5 {[%clk 1:22:59]} 9. O-O {[%clk 1:22:18]}  Nc6 {[%clk 1:22:03]}
10. Rc1 {[%clk 1:12:40]}  cxd4 {[%clk 1:19:30]} 11. exd4 {[%clk 1:10:27]}  Rc8 {[%clk 1:18:31]} 12. Qe2 {[%clk 1:04:37]}  dxc4 {[%clk 1:15:36]}
13. bxc4 {[%clk 1:04:22]}  Nb4 {[%clk 1:12:26]} 14. Bb1 {[%clk 1:04:31]}  Ba6 {[%clk 1:12:14]} 15. Ne5 {[%clk 0:51:14]}  Nbd5 {[%clk 1:08:23]}
16. Rfd1 {[%clk 0:47:31]}  Nxc3 {[%clk 1:05:20]} 17. Rxc3 {[%clk 0:47:12]}  Qc7 {[%clk 1:00:44]} 18. Rh3 {[%clk 0:39:33]}  g6 {[%clk 0:59:16]}
19. Qe3 {[%clk 0:36:37]}  Rfd8 {[%clk 0:55:26]} 20. d5 {[%clk 0:29:16]}  Bxc4 {[%clk 0:42:06]} 21. Nxg6 {[%clk 0:23:56]}  fxg6 {[%clk 0:41:02]}
22. Qxe6+ {[%clk 0:22:48]}  Kg7 {[%clk 0:40:20]} 23. Rxh7+ {[%clk 0:22:58]}  Kxh7 {[%clk 0:40:31]} 24. Qf7+ {[%clk 0:23:25]}  Kh8 {[%clk 0:40:49]}
25. Bxg6 {[%clk 0:23:43]}  Bf8 {[%clk 0:37:24]} 26. Bxf6+ {[%clk 0:24:09]}  Bg7 {[%clk 0:37:50]} 27. Bxg7# {[%clk 0:23:59]} 1-0

[Event "Irish Championship 2026"]
[Site "Talbot Hotel Stillorgan, Co.Dublin, IE"]
[Date "2026.08.03"]
[Round "3"]
[White "Hughes, Padraig"]
[Black "Collins, Adam"]
[Result "1/2-1/2"]
[Board "65"]
[TimeControl "40/5400+30:1800+30"]
[WhiteFideId "2505690"]
[BlackFideId "2512300"]
[WhiteElo "2022"]
[BlackElo "2340"]
[BlackTitle "FM"]
[WhiteClock "0:13:57"]
[BlackClock "0:34:30"]
[Variant "Standard"]
[EndDate "2026.08.03"]
[EndTime "17:06:29"]

1. e4 {[%clk 1:30:58]}  e6 {[%clk 1:30:01]} 2. d4 {[%clk 1:31:10]}  d5 {[%clk 1:30:25]} 3. Nd2 {[%clk 1:31:37]}  c5 {[%clk 1:30:41]}
4. exd5 {[%clk 1:32:01]}  Qxd5 {[%clk 1:31:04]} 5. Ngf3 {[%clk 1:32:26]}  cxd4 {[%clk 1:31:29]} 6. Bc4 {[%clk 1:32:52]}  Qd7 {[%clk 1:31:55]}
7. O-O {[%clk 1:33:15]}  Nc6 {[%clk 1:32:22]} 8. Nb3 {[%clk 1:33:40]}  a6 {[%clk 1:32:47]} 9. Nbxd4 {[%clk 1:34:04]}  Nxd4 {[%clk 1:33:11]}
10. Qxd4 {[%clk 1:34:29]}  Qxd4 {[%clk 1:33:36]} 11. Nxd4 {[%clk 1:34:53]}  Bc5 {[%clk 1:34:03]} 12. Nb3 {[%clk 1:35:01]}  Bb6 {[%clk 1:34:28]}
13. Be2 {[%clk 1:35:26]}  Ne7 {[%clk 1:31:17]} 14. Bf3 {[%clk 1:34:35]}  e5 {[%clk 1:04:24]} 15. Re1 {[%clk 1:32:10]}  f6 {[%clk 1:03:12]}
16. Be3 {[%clk 1:26:15]}  Bc7 {[%clk 0:48:41]} 17. a4 {[%clk 1:23:21]}  a5 {[%clk 0:47:25]} 18. Bc5 {[%clk 1:17:31]}  Nc6 {[%clk 0:45:10]}
19. Rad1 {[%clk 1:00:23]}  Bf5 {[%clk 0:43:22]} 20. Bxc6+ {[%clk 0:55:09]}  bxc6 {[%clk 0:43:49]} 21. Nd4 {[%clk 0:55:32]}  Bd7 {[%clk 0:44:04]}
22. f4 {[%clk 0:55:47]}  O-O-O {[%clk 0:43:32]} 23. fxe5 {[%clk 0:55:01]}  Bxe5 {[%clk 0:42:16]} 24. Bb6 {[%clk 0:51:35]}  Rde8 {[%clk 0:39:30]}
25. c3 {[%clk 0:32:20]}  Bxd4+ {[%clk 0:28:42]} 26. cxd4 {[%clk 0:31:21]}  Rxe1+ {[%clk 0:28:34]} 27. Rxe1 {[%clk 0:31:49]}  Re8 {[%clk 0:28:53]}
28. Bxa5 {[%clk 0:18:57]}  Rxe1+ {[%clk 0:29:17]} 29. Bxe1 {[%clk 0:19:25]}  c5 {[%clk 0:29:31]} 30. dxc5 {[%clk 0:19:33]}  Bxa4 {[%clk 0:29:57]}
31. Kf2 {[%clk 0:16:22]}  Kd7 {[%clk 0:30:16]} 32. Ke3 {[%clk 0:16:39]}  Kc6 {[%clk 0:30:35]} 33. Kd4 {[%clk 0:16:31]}  Bb5 {[%clk 0:30:25]}
34. Bc3 {[%clk 0:16:00]}  Bf1 {[%clk 0:30:34]} 35. g3 {[%clk 0:16:12]}  h5 {[%clk 0:30:17]} 36. b4 {[%clk 0:16:17]}  Be2 {[%clk 0:30:05]}
37. Ke4 {[%clk 0:15:06]}  g6 {[%clk 0:30:19]} 38. Bxf6 {[%clk 0:15:16]}  Bf1 {[%clk 0:30:37]} 39. Bc3 {[%clk 0:14:51]}  Be2 {[%clk 0:30:57]}
40. Ke5 {[%clk 0:15:15]}  Bf1 {[%clk 0:31:13]} 41. Kf6 {[%clk 0:14:54]}  Bd3 {[%clk 0:31:38]} 42. Kg5 {[%clk 0:14:30]}  Bc2 {[%clk 0:31:55]}
43. h3 {[%clk 0:14:25]}  Bd3 {[%clk 0:32:09]} 44. g4 {[%clk 0:14:42]}  hxg4 {[%clk 0:32:34]} 45. hxg4 {[%clk 0:14:56]}  Bc2 {[%clk 0:32:52]}
46. Kf6 {[%clk 0:15:04]}  Bd3 {[%clk 0:33:16]} 47. Ke7 {[%clk 0:15:27]}  Be2 {[%clk 0:33:40]} 48. g5 {[%clk 0:15:52]}  Bf1 {[%clk 0:34:05]}
49. Kf6 {[%clk 0:13:59]}  Bd3 {[%clk 0:34:30]} 50. Ke5 {[%clk 0:13:57]} 1/2-1/2

[Event "Irish Championship 2026"]
[Site "Talbot Hotel Stillorgan, Co.Dublin, IE"]
[Date "2026.08.03"]
[Round "3"]
[White "Daly, Colm"]
[Black "Oisin O'Cuilleanain"]
[Result "0-1"]
[Board "66"]
[TimeControl "40/5400+30:1800+30"]
[WhiteFideId "2500434"]
[WhiteElo "2182"]
[BlackElo "2128"]
[WhiteTitle "FM"]
[WhiteClock "0:00:27"]
[BlackClock "0:35:31"]
[Variant "Standard"]
[EndDate "2026.08.03"]
[EndTime "18:24:31"]

1. Nf3 {[%clk 1:19:10]}  Nf6 {[%clk 1:30:54]} 2. d4 {[%clk 1:13:00]}  g6 {[%clk 1:30:28]} 3. c4 {[%clk 1:13:22]}  Bg7 {[%clk 1:30:53]}
4. Nc3 {[%clk 1:13:41]}  d5 {[%clk 1:31:19]} 5. Bg5 {[%clk 1:14:06]}  Ne4 {[%clk 1:31:09]} 6. cxd5 {[%clk 1:14:22]}  Nxg5 {[%clk 1:31:33]}
7. Nxg5 {[%clk 1:14:47]}  e6 {[%clk 1:31:47]} 8. Nf3 {[%clk 1:12:20]}  exd5 {[%clk 1:32:11]} 9. e3 {[%clk 1:12:41]}  O-O {[%clk 1:30:57]}
10. Be2 {[%clk 1:12:19]}  c6 {[%clk 1:26:46]} 11. O-O {[%clk 1:12:08]}  Qe7 {[%clk 1:22:44]} 12. Rb1 {[%clk 1:11:33]}  a5 {[%clk 1:22:52]}
13. Na4 {[%clk 1:10:14]}  Nd7 {[%clk 1:22:01]} 14. Rc1 {[%clk 1:09:23]}  h5 {[%clk 1:17:53]} 15. a3 {[%clk 1:09:28]}  h4 {[%clk 1:15:06]}
16. Re1 {[%clk 1:08:29]}  g5 {[%clk 1:12:37]} 17. Nd2 {[%clk 1:03:37]}  f5 {[%clk 1:08:22]} 18. Bd3 {[%clk 1:03:42]}  g4 {[%clk 1:03:43]}
19. f4 {[%clk 0:58:56]}  gxf3 {[%clk 0:54:21]} 20. Nxf3 {[%clk 0:54:34]}  Qf6 {[%clk 0:54:04]} 21. Rc2 {[%clk 0:53:44]}  Qh6 {[%clk 0:48:27]}
22. Kh1 {[%clk 0:50:17]}  b5 {[%clk 0:45:32]} 23. Nc5 {[%clk 0:45:54]}  Nf6 {[%clk 0:45:30]} 24. a4 {[%clk 0:46:12]}  bxa4 {[%clk 0:42:18]}
25. Nxa4 {[%clk 0:45:56]}  Ne4 {[%clk 0:41:39]} 26. Nb6 {[%clk 0:35:29]}  Rb8 {[%clk 0:41:09]} 27. Nxc8 {[%clk 0:34:48]}  Rbxc8 {[%clk 0:41:35]}
28. Ng1 {[%clk 0:34:21]}  Rce8 {[%clk 0:37:40]} 29. Nh3 {[%clk 0:33:46]}  Bf6 {[%clk 0:37:08]} 30. Rxc6 {[%clk 0:30:15]}  Rf7 {[%clk 0:35:23]}
31. Qc2 {[%clk 0:19:32]}  Rfe7 {[%clk 0:32:52]} 32. Rc8 {[%clk 0:15:29]}  Bxd4 {[%clk 0:28:43]} 33. Bxe4 {[%clk 0:11:20]}  Rxe4 {[%clk 0:29:01]}
34. Rxe8+ {[%clk 0:10:39]}  Rxe8 {[%clk 0:29:28]} 35. Qxf5 {[%clk 0:10:52]}  Qe6 {[%clk 0:27:01]} 36. Qg5+ {[%clk 0:10:43]}  Bg7 {[%clk 0:27:23]}
37. Rf1 {[%clk 0:06:26]}  Qe5 {[%clk 0:26:15]} 38. Qxh4 {[%clk 0:05:12]}  Qxe3 {[%clk 0:26:41]} 39. Qh5 {[%clk 0:04:35]}  Re5 {[%clk 0:21:46]}
40. Qf7+ {[%clk 0:03:17]}  Kh7 {[%clk 0:22:08]} 41. Rf3 {[%clk 0:26:33]}  Qh6 {[%clk 0:49:43]} 42. Ng1 {[%clk 0:19:56]}  Rh5 {[%clk 0:49:04]}
43. h3 {[%clk 0:19:51]}  Qg6 {[%clk 0:48:37]} 44. b3 {[%clk 0:15:42]}  Qxf7 {[%clk 0:47:33]} 45. Rxf7 {[%clk 0:16:10]}  d4 {[%clk 0:46:14]}
46. Nf3 {[%clk 0:13:03]}  Rd5 {[%clk 0:46:32]} 47. Nd2 {[%clk 0:10:01]}  d3 {[%clk 0:46:31]} 48. Rf1 {[%clk 0:09:47]}  Kg6 {[%clk 0:44:44]}
49. Rd1 {[%clk 0:09:36]}  Bh6 {[%clk 0:42:05]} 50. Kg1 {[%clk 0:08:15]}  Bxd2 {[%clk 0:41:40]} 51. Rxd2 {[%clk 0:08:43]}  Kf5 {[%clk 0:42:04]}
52. Kf2 {[%clk 0:05:24]}  Ke4 {[%clk 0:41:49]} 53. g4 {[%clk 0:04:30]}  Rc5 {[%clk 0:41:45]} 54. Ke1 {[%clk 0:03:55]}  Ke3 {[%clk 0:42:09]}
55. Kd1 {[%clk 0:04:19]}  Rb5 {[%clk 0:35:33]} 56. Rb2 {[%clk 0:01:27]}  a4 {[%clk 0:35:57]} 57. Rg2 {[%clk 0:00:40]}  axb3 {[%clk 0:35:12]}
58. Rg3+ {[%clk 0:01:02]}  Kf4 {[%clk 0:35:31]} 59. Ke1 {[%clk 0:00:27]}  Ke5 {[%clk 0:35:31]} 0-1

[Event "Irish Championship 2026"]
[Site "Talbot Hotel Stillorgan, Co.Dublin, IE"]
[Date "2026.08.03"]
[Round "3"]
[White "Jessel, Stephen"]
[Black "Harding, Tim D"]
[Result "1-0"]
[Board "69"]
[TimeControl "40/5400+30:1800+30"]
[WhiteFideId "628859"]
[BlackFideId "2500256"]
[WhiteElo "2364"]
[BlackElo "2004"]
[WhiteTitle "FM"]
[BlackTitle "CM"]
[WhiteClock "0:08:26"]
[BlackClock "0:26:11"]
[Variant "Standard"]
[EndDate "2026.08.03"]
[EndTime "16:59:22"]

1. Nf3 {[%clk 1:30:52]}  d5 {[%clk 1:30:47]} 2. c4 {[%clk 1:31:03]}  e6 {[%clk 1:31:09]} 3. g3 {[%clk 1:31:22]}  Nf6 {[%clk 1:31:31]}
4. Bg2 {[%clk 1:31:41]}  Bd6 {[%clk 1:31:03]} 5. O-O {[%clk 1:24:21]}  O-O {[%clk 1:29:20]} 6. d4 {[%clk 1:23:26]}  h6 {[%clk 1:29:13]}
7. b3 {[%clk 1:16:36]}  b6 {[%clk 1:29:17]} 8. Bb2 {[%clk 1:09:23]}  Bb7 {[%clk 1:29:37]} 9. Nc3 {[%clk 1:08:13]}  Re8 {[%clk 1:26:40]}
10. Rc1 {[%clk 1:01:56]}  a6 {[%clk 1:16:08]} 11. Nd2 {[%clk 0:53:51]}  c5 {[%clk 1:08:08]} 12. dxc5 {[%clk 0:49:20]}  bxc5 {[%clk 1:05:06]}
13. cxd5 {[%clk 0:42:59]}  exd5 {[%clk 1:03:19]} 14. Na4 {[%clk 0:42:31]}  Nbd7 {[%clk 1:02:38]} 15. Nc4 {[%clk 0:39:23]}  Bf8 {[%clk 0:58:32]}
16. Ne3 {[%clk 0:33:14]}  Rc8 {[%clk 0:54:58]} 17. Nxd5 {[%clk 0:26:23]}  Bxd5 {[%clk 0:54:46]} 18. Bxd5 {[%clk 0:26:39]}  Nxd5 {[%clk 0:55:14]}
19. Qxd5 {[%clk 0:26:58]}  Qc7 {[%clk 0:40:55]} 20. Rfd1 {[%clk 0:23:12]}  Nb6 {[%clk 0:40:13]} 21. Nxb6 {[%clk 0:22:13]}  Qxb6 {[%clk 0:40:41]}
22. Qc4 {[%clk 0:18:58]}  Re6 {[%clk 0:36:34]} 23. e3 {[%clk 0:17:12]}  Qc6 {[%clk 0:31:48]} 24. Qd5 {[%clk 0:14:39]}  Be7 {[%clk 0:31:18]}
25. Qxc6 {[%clk 0:14:24]}  Rexc6 {[%clk 0:29:51]} 26. Rd7 {[%clk 0:10:37]}  Bf6 {[%clk 0:28:45]} 27. Bxf6 {[%clk 0:10:49]}  Rxf6 {[%clk 0:29:02]}
28. Rc4 {[%clk 0:10:32]}  Rb6 {[%clk 0:26:11]} 29. Rf4 {[%clk 0:08:26]} 1-0